lending/lending_fUSD_20241229
["ID","MTS","AMOUNT","RATE_DAILY","PERIOD"]
[347076987,1735489927929,-1357.53,0.00015548,2]
[347076988,1735489927939,-852.21,0.00015548,2]
[347076989,1735489927949,-664.74,0.00015548,2]
[347076990,1735489927959,-2081.2,0.00015548,2]
[347076991,1735489927970,-500.0,0.00015548,2]
[347076992,1735489927980,-1193.34,0.00015548,2]
[347076993,1735489927989,-1949.38,0.00015548,2]
[347076994,1735489927999,-1499.21,0.00015548,2]
[347076995,1735489928008,-957.19,0.00015548,2]
[347076996,1735489928018,-1086.74,0.00015548,2]
[347076997,1735489928027,-1671.48,0.00015548,2]
[347076998,1735489928037,-1109.88,0.00015548,2]
[347076999,1735489928048,-1401.41,0.00015548,2]
[347077000,1735489928059,-2210.72,0.00015548,2]
[347077001,1735489928069,-2145.94,0.00015548,2]
[347077002,1735489928080,-2179.71,0.00015548,2]
[347077003,1735489928089,-1629.52,0.00015549,2]
[347077004,1735489928099,-1138.87,0.00015549,2]
[347077005,1735489928109,-526.0,0.00015549,2]
[347077006,1735489928119,-872.22,0.00015549,2]
[347077007,1735489928129,-1239.13,0.00015549,2]
[347077008,1735489928139,-947.43,0.00015549,2]
[347077009,1735489928148,-1354.94,0.00015549,2]
[347077010,1735489928158,-1847.85,0.00015549,2]
[347077011,1735489928168,-2077.72,0.00015549,2]
[347077012,1735489928179,-885.81,0.00015549,2]
[347077013,1735489928189,-1258.17,0.00015549,2]
[347077014,1735489928199,-1096.6,0.00015549,2]
[347077015,1735489928209,-1647.5,0.00015549,2]
[347077016,1735489928218,-936.49,0.00015549,2]
[347077017,1735489928228,-1965.02,0.00015549,2]
[347077018,1735489928238,-1270.11,0.00015549,2]
[347077019,1735489928247,-735.69,0.00015549,2]
[347077020,1735489928257,-1915.81,0.00015549,2]
[347077021,1735489928267,-1704.31,0.00015549,2]
[347077022,1735489928277,-601.41,0.00015549,2]
[347077023,1735489928286,-842.62,0.00015549,2]
[347077024,1735489928296,-917.37,0.00015549,2]
[347077025,1735489928306,-1178.93,0.00015549,2]
[347077026,1735489928316,-1187.17,0.00015549,2]
[347077027,1735489928327,-857.11,0.00015549,2]
[347077028,1735489928337,-564.34,0.00015549,2]
[347077029,1735489928347,-637.8,0.00015549,2]
[347077030,1735489928356,-1174.42,0.00015549,2]
[347077031,1735489928366,-1426.37,0.00015549,2]
[347077032,1735489928376,-591.13,0.00015549,2]
[347077033,1735489928385,-901.33,0.00015549,2]
[347077034,1735489928395,-500.0,0.00015549,2]
[347077035,1735489928404,-2098.83,0.00015549,2]
[347077036,1735489928414,-896.49,0.00015549,2]
[347077037,1735489928424,-794.28,0.00015549,2]
[347077038,1735489928434,-1070.04,0.00015549,2]
[347077039,1735489928444,-987.86,0.00015549,2]
[347077040,1735489928455,-1547.13,0.00015549,2]
[347077041,1735489928466,-676.15,0.00015549,2]
[347077042,1735489928475,-1819.79,0.00015549,2]
[347077043,1735489928485,-1109.01,0.00015549,2]
[347077044,1735489928494,-1601.3,0.00015549,2]
[347077045,1735489928504,-1018.37,0.00015549,2]
[347077046,1735489928514,-1282.75,0.00015549,2]
[347077047,1735489928523,-1716.82,0.00015549,2]
[347077048,1735489928532,-1084.55,0.00015549,2]
[347077049,1735489928541,-936.71,0.00015549,2]
[347077050,1735489928551,-712.64,0.00015549,2]
[347077051,1735489928561,-837.44,0.00015549,2]
[347077052,1735489928571,-1790.34,0.00015549,2]
[347077053,1735489928582,-966.27,0.00015549,2]
[347077054,1735489928592,-702.86,0.00015549,2]
[347077055,1735489928601,-1154.03,0.00015549,2]
[347077056,1735489928610,-911.82,0.00015549,2]
[347077057,1735489928620,-786.78,0.00015549,2]
[347077058,1735489928630,-991.76,0.00015549,2]
[347077059,1735489928640,-1789.48,0.00015549,2]
[347077060,1735489928651,-500.0,0.00015549,2]
[347077061,1735489928660,-538.54,0.00015549,2]
[347077062,1735489928671,-918.79,0.00015549,2]
[347077063,1735489928681,-743.62,0.00015549,2]
[347077064,1735489928691,-528.78,0.00015549,2]
[347077065,1735489928701,-1250.82,0.00015549,2]
[347077066,1735489928710,-871.83,0.00015549,2]
[347077067,1735489928720,-2412.7,0.00015549,2]
[347077068,1735489928730,-1819.03,0.00015549,2]
[347077069,1735489928739,-2491.36,0.00015549,2]
[347077070,1735489928749,-1057.0,0.00015579,2]
[347077071,1735489928759,-429.48,0.00015611,2]
[347077072,1735489928774,-150.0,0.00015621,2]
[347077073,1735489928783,-25075.55047675,0.0001563,2]
[347077074,1735489928793,-6837.1572637,0.00015638,2]
[347077075,1735489928803,-2212.3301814,0.00015638,2]
[347077076,1735489928813,-7733.0699084,0.00015638,2]
[347077077,1735489928823,-2879.743903,0.00015639,2]
[347077078,1735489928833,-771.1,0.00015644,2]
[347077079,1735489928844,-150.0,0.00015644,2]
[347077080,1735489928854,-150.0,0.00015644,2]
[347077081,1735489928864,-150.0,0.00015644,2]
[347077082,1735489928874,-152.0,0.00015644,13]
[347077083,1735489928884,-1805.92,0.00015646,2]
[347077084,1735489928894,-5215.12,0.00015646,2]
[347077085,1735489928904,-2890.03,0.00015646,2]
[347077086,1735489928914,-4902.25,0.00015646,2]
[347077087,1735489928924,-500.0,0.00015646,2]
[347077088,1735489928934,-1801.91,0.00015646,2]
[347077089,1735489929023,-3264.87,0.00015646,2]
[347077090,1735489929033,-1526.95,0.00015646,2]
[347077091,1735489929043,-793.71,0.00015646,2]
[347077092,1735489929053,-4566.76,0.00015646,2]
[347077093,1735489929062,-1940.64,0.00015646,2]
[347077094,1735489929072,-1046.88,0.00015646,2]
[347077095,1735489929083,-17156.74,0.00015646,2]
[347077096,1735489929093,-10143.96,0.00015646,2]
[347077097,1735489929103,-4108.35,0.00015646,2]
[347077098,1735489929112,-2730.04,0.00015646,2]
[347077099,1735489929121,-2556.02,0.00015646,2]
[347077100,1735489929130,-1530.31,0.00015646,2]
[347077101,1735489929140,-6586.15,0.00015646,2]
[347077102,1735489929149,-4366.33,0.00015646,2]
[347077103,1735489929159,-681.34,0.00015646,2]
[347077104,1735489929168,-701.38,0.00015646,2]
[347077105,1735489929178,-500.0,0.00015646,2]
[347077106,1735489929188,-1697.84,0.00015646,2]
[347077107,1735489929198,-3038.02,0.00015646,2]
[347077108,1735489929208,-2019.15,0.00015646,2]
[347077109,1735489929217,-852.73,0.00015646,2]
[347077110,1735489929227,-1431.9,0.00015646,2]
[347077111,1735489929235,-500.0,0.00015646,2]
[347077112,1735489929245,-580.22,0.00015647,2]
[347077113,1735489929255,-1469.79,0.00015647,2]
[347077114,1735489929265,-1662.07,0.00015647,2]
[347077115,1735489929275,-500.0,0.00015647,2]
[347077116,1735489929284,-1592.56,0.00015647,2]
[347077117,1735489929294,-643.7,0.00015647,2]
[347077118,1735489929304,-3558.18,0.00015647,2]
[347077119,1735489929313,-988.16,0.00015647,2]
[347077120,1735489929322,-1652.5,0.00015647,2]
[347077121,1735489929334,-517.89,0.00015647,2]
[347077122,1735489929343,-900.7,0.00015647,2]
[347077123,1735489929352,-674.01,0.00015647,2]
[347077124,1735489929362,-5047.81,0.00015647,2]
[347077125,1735489929372,-500.0,0.00015647,2]
[347077126,1735489929381,-531.9,0.00015647,2]
[347077127,1735489929391,-603.5,0.00015647,2]
[347077128,1735489929400,-1051.42,0.00015647,2]
[347077129,1735489929410,-1024.0,0.00015647,2]
[347077130,1735489929420,-833.89,0.00015647,2]
[347077131,1735489929429,-1151.35,0.00015647,2]
[347077132,1735489929439,-756.97,0.00015647,2]
[347077133,1735489929449,-4647.61,0.00015647,2]
[347077134,1735489929459,-500.0,0.00015647,2]
[347077135,1735489929469,-282.03050785,0.00015647,2]
[347077136,1735489929479,-500.0,0.00015647,2]
[347077137,1735489929489,-3472.39,0.00015647,2]
[347077138,1735489929498,-500.0,0.00015647,2]
[347077139,1735489929508,-1011.11,0.00015647,2]
[347077140,1735489929518,-2584.04,0.00015647,2]
[347077141,1735489929527,-2630.44,0.00015647,2]
[347077142,1735489929538,-1068.1,0.00015647,2]
[347077143,1735489929548,-1103.17,0.00015647,2]
[347077144,1735489929558,-1002.9,0.00015647,2]
[347077145,1735489929568,-18294.83,0.00015647,2]
[347077146,1735489929579,-3065.29,0.00015647,2]
[347077147,1735489929588,-1272.65,0.00015647,2]
[347077148,1735489929598,-2185.03,0.00015647,2]
[347077149,1735489929608,-9894.2,0.00015647,2]
[347077150,1735489929618,-500.0,0.00015647,2]
[347077151,1735489929627,-1886.48,0.00015647,2]
[347077152,1735489929637,-3029.99,0.00015647,2]
[347077153,1735489929647,-6076.11,0.00015647,2]
[347077154,1735489929656,-1453.24,0.00015647,2]
[347077155,1735489929666,-1635.32,0.00015647,2]
[347077156,1735489929676,-1542.14,0.00015647,2]
[347077157,1735489929685,-1891.39,0.00015647,2]
[347077158,1735489929695,-3536.31,0.00015647,2]
[347077159,1735489929704,-1072.15,0.00015647,2]
[347077160,1735489929713,-500.0,0.00015647,2]
[347077161,1735489929722,-839.13,0.00015647,2]
[347077162,1735489929731,-1665.61,0.00015647,2]
[347077163,1735489929740,-500.0,0.00015647,2]
[347077164,1735489929752,-11603.09,0.00015647,2]
[347077165,1735489929762,-1447.4,0.00015647,2]
[347077166,1735489929772,-789.12,0.00015648,2]
[347077167,1735489929781,-500.0,0.00015648,2]
[347077168,1735489929791,-640.3,0.00015648,2]
[347077169,1735489929799,-682.07,0.00015648,2]
[347077170,1735489929809,-500.0,0.00015648,2]
[347077171,1735489929818,-240.79988375,0.00015648,2]
[347077172,1735489929827,-742.88,0.00015648,2]
[347077173,1735489929837,-500.0,0.00015648,2]
[347077174,1735489929847,-578.48,0.00015648,2]
[347077175,1735489929856,-969.72,0.00015648,2]
[347077176,1735489929866,-766.29,0.00015648,2]
[347077177,1735489929876,-500.0,0.00015648,2]
[347077178,1735489929886,-500.0,0.00015648,2]
[347077179,1735489929896,-505.83607854,0.00015648,2]
[347077180,1735489929905,-500.0,0.00015648,2]
[347077181,1735489929915,-950.22,0.00015648,2]
[347077182,1735489929924,-500.0,0.00015648,2]
[347077183,1735489929934,-500.0,0.00015648,2]
[347077184,1735489929943,-500.0,0.00015648,2]
[347077185,1735489929953,-912.48,0.00015648,2]
[347077186,1735489929962,-500.0,0.00015648,2]
[347077187,1735489929972,-661.25,0.00015648,2]
[347077188,1735489929982,-500.0,0.00015648,2]
[347077189,1735489929991,-500.0,0.00015648,2]
[347077190,1735489930000,-500.0,0.00015648,2]
[347077191,1735489930010,-1210.33,0.00015648,2]
[347077192,1735489930020,-500.0,0.00015648,2]
[347077193,1735489930029,-500.0,0.00015648,2]
[347077194,1735489930039,-502.31,0.00015648,2]
[347077195,1735489930048,-500.0,0.00015648,2]
[347077196,1735489930057,-500.0,0.00015648,2]
[347077197,1735489930067,-500.0,0.00015648,2]
[347077198,1735489930078,-644.59,0.00015648,2]
[347077199,1735489930087,-500.0,0.00015648,2]
[347077200,1735489930097,-1137.54,0.00015648,2]
[347077201,1735489930107,-500.0,0.00015648,2]
[347077202,1735489930116,-814.21,0.00015648,2]
[347077203,1735489930125,-500.0,0.00015648,2]
[347077204,1735489930134,-717.64,0.00015648,2]
[347077205,1735489930143,-1253.64,0.00015648,2]
[347077206,1735489930153,-500.0,0.00015648,2]
[347077207,1735489930163,-508.54,0.00015648,2]
[347077208,1735489930173,-500.0,0.00015648,2]
[347077209,1735489930183,-500.0,0.00015648,2]
[347077210,1735489930194,-1130.46,0.00015648,2]
[347077211,1735489930203,-623.05,0.00015648,2]
[347077212,1735489930213,-500.0,0.00015648,2]
[347077213,1735489930222,-913.53,0.00015648,2]
[347077214,1735489930232,-1090.0,0.00015648,2]
[347077215,1735489930241,-605.54,0.00015648,2]
[347077216,1735489930251,-500.0,0.00015648,2]
[347077217,1735489930260,-626.31,0.00015648,2]
[347077218,1735489930270,-587.01605683,0.00015648,2]
[347077219,1735489930279,-517.37,0.00015648,2]
[347077220,1735489930288,-500.0,0.00015648,2]
[347077221,1735489930298,-500.0,0.00015648,2]
[347077222,1735489930308,-687.05,0.00015648,2]
[347077223,1735489930317,-500.0,0.00015648,2]
[347077224,1735489930327,-549.65,0.00015648,2]
[347077225,1735489930337,-853.21,0.00015648,2]
[347077226,1735489930347,-500.0,0.00015648,2]
[347077227,1735489930356,-500.0,0.00015648,2]
[347077228,1735489930366,-529.86,0.00015648,2]
[347077229,1735489930375,-725.9,0.00015648,2]
[347077230,1735489930385,-1263.22,0.00015648,2]
[347077231,1735489930394,-500.0,0.00015648,2]
[347077232,1735489930403,-920.97,0.00015648,2]
[347077233,1735489930413,-500.0,0.00015648,2]
[347077234,1735489930423,-1244.8,0.00015648,2]
[347077235,1735489930432,-784.27,0.00015648,2]
[347077236,1735489930442,-700.7,0.00015648,2]
[347077237,1735489930452,-503.37,0.00015648,2]
[347077238,1735489930461,-896.25,0.00015648,2]
[347077239,1735489930471,-1160.49,0.00015648,2]
[347077240,1735489930481,-500.0,0.00015648,2]
[347077241,1735489930490,-573.61,0.00015648,2]
[347077242,1735489930500,-500.0,0.00015648,2]
[347077243,1735489930509,-500.0,0.00015648,2]
[347077244,1735489930518,-1348.21,0.00015648,2]
[347077245,1735489930527,-500.0,0.00015648,2]
[347077246,1735489930537,-548.05,0.00015648,2]
[347077247,1735489930546,-500.0,0.00015648,2]
[347077248,1735489930556,-707.32,0.00015648,2]
[347077249,1735489930566,-500.0,0.00015648,2]
[347077250,1735489930575,-500.0,0.00015648,2]
[347077251,1735489930586,-761.45,0.00015648,2]
[347077252,1735489930596,-515.67,0.00015648,2]
[347077253,1735489930605,-500.0,0.00015648,2]
[347077254,1735489930616,-655.36,0.00015648,2]
[347077255,1735489930625,-1111.12,0.00015648,2]
[347077256,1735489930636,-504.53,0.00015648,2]
[347077257,1735489930646,-939.99,0.00015648,2]
[347077258,1735489930656,-500.0,0.00015648,2]
[347077259,1735489930666,-670.09,0.00015648,2]
[347077260,1735489930676,-500.0,0.00015648,2]
[347077261,1735489930686,-500.0,0.00015648,2]
[347077262,1735489930696,-500.0,0.00015649,2]
[347077263,1735489930706,-500.0,0.00015649,2]
[347077264,1735489930715,-635.03,0.00015649,2]
[347077265,1735489930725,-739.18,0.00015649,2]
[347077266,1735489930734,-1016.64,0.00015649,2]
[347077267,1735489930744,-3511.19,0.00015649,2]
[347077268,1735489930753,-831.8,0.00015649,2]
[347077269,1735489930764,-1944.21,0.00015649,2]
[347077270,1735489930775,-1205.91,0.00015649,2]
[347077271,1735489930785,-3599.17,0.00015649,2]
[347077272,1735489930795,-778.37,0.00015649,2]
[347077273,1735489930805,-764.39,0.00015649,2]
[347077274,1735489930815,-858.22,0.00015649,2]
[347077275,1735489930824,-1078.5,0.00015649,2]
[347077276,1735489930835,-600.7,0.00015649,2]
[347077277,1735489930846,-1053.53,0.00015649,2]
[347077278,1735489930855,-2340.55,0.00015649,2]
[347077279,1735489930865,-531.43,0.00015649,2]
[347077280,1735489930876,-1041.24,0.00015649,2]
[347077281,1735489930886,-500.0,0.00015649,2]
[347077282,1735489930896,-3755.9,0.00015649,2]
[347077283,1735489930906,-500.0,0.00015649,2]
[347077284,1735489930915,-679.8,0.00015649,2]
[347077285,1735489930924,-3562.83,0.00015649,2]
[347077286,1735489930934,-475.86,0.00015649,2]
[347077287,1735489930943,-662.99,0.00015649,2]
[347077288,1735489930954,-530.53,0.00015649,2]
[347077289,1735489930963,-2528.19,0.00015649,2]
[347077290,1735489930973,-676.14,0.00015649,2]
[347077291,1735489930983,-500.0,0.00015649,2]
[347077292,1735489930993,-869.7,0.00015649,2]
[347077293,1735489931003,-885.94,0.00015649,2]
[347077294,1735489931013,-1387.4,0.00015649,2]
[347077295,1735489931023,-707.66,0.00015649,2]
[347077296,1735489931034,-1169.27,0.00015649,2]
[347077297,1735489931044,-6099.26,0.00015649,2]
[347077298,1735489931054,-732.6,0.00015649,2]
[347077299,1735489931064,-1183.54,0.00015649,2]
[347077300,1735489931074,-555.13,0.00015649,2]
[347077301,1735489931084,-500.0,0.00015649,2]
[347077302,1735489931094,-500.0,0.00015649,2]
[347077303,1735489931104,-3945.51,0.00015649,2]
[347077304,1735489931115,-2075.97,0.00015649,2]
[347077305,1735489931124,-654.05,0.00015649,2]
[347077306,1735489931134,-1345.89,0.00015649,2]
[347077307,1735489931144,-1061.45,0.00015649,2]
[347077308,1735489931154,-14284.14,0.00015649,2]
[347077309,1735489931164,-1058.29,0.00015649,2]
[347077310,1735489931173,-500.0,0.00015649,2]
[347077311,1735489931184,-853.86,0.00015649,2]
[347077312,1735489931194,-10147.36,0.00015649,2]
[347077313,1735489931204,-1697.41,0.00015649,2]
[347077314,1735489931214,-1107.23,0.00015649,2]
[347077315,1735489931224,-547.58,0.00015649,2]
[347077316,1735489931234,-1236.84,0.00015649,2]
[347077317,1735489931243,-1403.26,0.00015649,2]
[347077318,1735489931253,-638.45,0.00015649,2]
[347077319,1735489931263,-954.3,0.00015649,2]
[347077320,1735489931272,-749.83,0.00015649,2]
[347077321,1735489931283,-1321.25,0.00015649,2]
[347077322,1735489931292,-3600.62,0.00015649,2]
[347077323,1735489931303,-750.79,0.00015649,2]
[347077324,1735489931312,-776.0,0.00015649,2]
[347077325,1735489931322,-2295.24,0.00015649,2]
[347077326,1735489931333,-743.69,0.00015649,2]
[347077327,1735489931342,-637.29,0.00015649,2]
[347077328,1735489931352,-528.46,0.00015649,2]
[347077329,1735489931362,-16509.04,0.00015649,2]
[347077330,1735489931372,-1355.28,0.00015649,2]
[347077331,1735489931383,-2104.69,0.00015649,2]
[347077332,1735489931392,-893.81,0.00015649,2]
[347077333,1735489931402,-773.78,0.00015649,2]
[347077334,1735489931412,-890.01,0.00015649,2]
[347077335,1735489931421,-1251.31,0.00015649,2]
[347077336,1735489931430,-500.0,0.00015649,2]
[347077337,1735489931440,-909.43,0.00015649,2]
[347077338,1735489931450,-1051.79,0.00015649,2]
[347077339,1735489931460,-1988.73,0.00015649,2]
[347077340,1735489931470,-1184.67,0.00015649,2]
[347077341,1735489931479,-2308.07,0.00015649,2]
[347077342,1735489931490,-500.0,0.00015649,2]
[347077343,1735489931499,-705.54,0.00015649,2]
[347077344,1735489931508,-1060.41,0.00015649,2]
[347077345,1735489931518,-450.189996,0.00015649,2]
[347077346,1735489931528,-2299.51,0.00015649,2]
[347077347,1735489931538,-851.46,0.00015649,2]
[347077348,1735489931547,-1853.38,0.00015649,2]
[347077349,1735489931557,-964.97,0.00015649,2]
[347077350,1735489931567,-1075.86,0.00015649,2]
[347077351,1735489931576,-500.0,0.00015649,2]
[347077352,1735489931587,-2115.26,0.00015649,2]
[347077353,1735489931597,-1352.22,0.00015649,2]
[347077354,1735489931606,-190.14,0.00015649,2]
[347077355,1735489931616,-639.4,0.00015649,2]
[347077356,1735489931625,-849.33,0.00015649,2]
[347077357,1735489931636,-3181.36,0.0001565,2]
[347077358,1735489931646,-6329.31,0.0001565,2]
[347077359,1735489931655,-3277.49,0.0001565,2]
[347077360,1735489931665,-12312.34,0.0001565,2]
[347077361,1735489931676,-3574.32,0.0001565,2]
[347077362,1735489931686,-3943.77,0.0001565,2]
[347077363,1735489931696,-3305.08,0.0001565,2]
[347077364,1735489931706,-739.21,0.0001565,2]
[347077365,1735489931719,-7280.0,0.0001565,2]
[347077366,1735489931729,-2691.11,0.0001565,2]
[347077367,1735489931739,-2885.5,0.0001565,2]
[347077368,1735489931749,-2387.4,0.0001565,2]
[347077369,1735489931760,-4451.17,0.0001565,2]
[347077370,1735489931773,-2274.63,0.0001565,2]
[347077371,1735489931783,-922.86,0.0001565,2]
[347077372,1735489931793,-1156.67,0.0001565,2]
[347077373,1735489931803,-2396.52,0.0001565,2]
[347077374,1735489931815,-3499.32,0.0001565,2]
[347077375,1735489931825,-2481.53,0.0001565,2]
[347077376,1735489931836,-2018.38,0.0001565,2]
[347077377,1735489931847,-683.43,0.0001565,2]
[347077378,1735489931857,-5328.55,0.0001565,2]
[347077379,1735489931867,-2716.03,0.0001565,2]
[347077380,1735489931877,-3917.79,0.0001565,2]
[347077381,1735489931888,-45088.26,0.0001565,2]
[347077382,1735489931898,-1605.45,0.0001565,2]
[347077383,1735489931908,-1291.66,0.00015651,2]
[347077384,1735489931918,-1926.58,0.00015651,2]
[347077385,1735489931928,-4336.05,0.00015651,2]
[347077386,1735489931938,-5033.79,0.00015651,2]
[347077387,1735489931948,-1000.0,0.00015656,2]
[347077388,1735489931957,-150.0,0.0001566,2]
[347077389,1735489931968,-2067.06001,0.0001566,2]
[347077390,1735489931978,-1956.0,0.00015694,2]
[347077391,1735489931988,-201.9,0.00015694,2]
[347077392,1735489931998,-3793.0,0.0001574,2]
[347077393,1735489932009,-2241.0,0.0001574,2]
[347077394,1735489932019,-8829.74,0.00015753,2]
[347077395,1735489932029,-436.65,0.00015781,2]
[347077396,1735489932040,-500.0,0.00015808,2]
[347077397,1735489932049,-150.0,0.00015811,2]
[347077398,1735489932059,-510.97,0.00015822,2]
[347077399,1735489932069,-1306.56,0.00015822,2]
[347077400,1735489932080,-968.82,0.00015822,2]
[347077401,1735489932091,-1952.26,0.00015822,2]
[347077402,1735489932100,-1407.8,0.00015822,2]
[347077403,1735489932110,-1583.19,0.00015822,2]
[347077404,1735489932120,-1048.33,0.00015822,2]
[347077405,1735489932130,-900.45,0.00015822,2]
[347077406,1735489932140,-669.37,0.00015822,2]
[347077407,1735489932150,-1013.65,0.00015822,2]
[347077408,1735489932160,-1333.84,0.00015822,2]
[347077409,1735489932170,-701.57,0.00015822,2]
[347077410,1735489932180,-616.81,0.00015822,2]
[347077411,1735489932190,-1458.91,0.00015822,2]
[347077412,1735489932199,-1791.59,0.00015822,2]
[347077413,1735489932209,-500.0,0.00015822,2]
[347077414,1735489932219,-500.0,0.00015822,2]
[347077415,1735489932228,-500.0,0.00015822,2]
[347077416,1735489932238,-887.59,0.00015822,2]
[347077417,1735489932248,-2024.5,0.00015822,2]
[347077418,1735489932258,-1199.76,0.00015822,2]
[347077419,1735489932268,-1139.1,0.00015822,2]
[347077420,1735489932278,-1849.25,0.00015822,2]
[347077421,1735489932288,-834.81,0.00015822,2]
[347077422,1735489932298,-1070.95,0.00015822,2]
[347077423,1735489932308,-500.0,0.00015822,2]
[347077424,1735489932318,-936.54,0.00015822,2]
[347077425,1735489932327,-2044.8,0.00015822,2]
[347077426,1735489932338,-1357.53,0.00015822,2]
[347077427,1735489932348,-852.21,0.00015822,2]
[347077428,1735489932358,-664.74,0.00015822,2]
[347077429,1735489932368,-2081.2,0.00015822,2]
[347077430,1735489932378,-500.0,0.00015822,2]
[347077431,1735489932388,-1193.34,0.00015822,2]
[347077432,1735489932398,-1949.38,0.00015822,2]
[347077433,1735489932408,-1499.21,0.00015822,2]
[347077434,1735489932417,-957.19,0.00015822,2]
[347077435,1735489932427,-1086.74,0.00015822,2]
[347077436,1735489932437,-1671.48,0.00015822,2]
[347077437,1735489932447,-1109.88,0.00015822,2]
[347077438,1735489932457,-1401.41,0.00015822,2]
[347077439,1735489932467,-2210.72,0.00015822,2]
[347077440,1735489932477,-2145.94,0.00015822,2]
[347077441,1735489932487,-2179.71,0.00015822,2]
[347077442,1735489932497,-1629.52,0.00015823,2]
[347077443,1735489932507,-1138.87,0.00015823,2]
[347077444,1735489932517,-526.0,0.00015823,2]
[347077445,1735489932527,-872.22,0.00015823,2]
[347077446,1735489932538,-1239.13,0.00015823,2]
[347077447,1735489932548,-947.43,0.00015823,2]
[347077448,1735489932558,-1354.94,0.00015823,2]
[347077449,1735489932568,-1847.85,0.00015823,2]
[347077450,1735489932578,-2077.72,0.00015823,2]
[347077451,1735489932588,-885.81,0.00015823,2]
[347077452,1735489932598,-1258.17,0.00015823,2]
[347077453,1735489932608,-1096.6,0.00015823,2]
[347077454,1735489932618,-1647.5,0.00015823,2]
[347077455,1735489932629,-936.49,0.00015823,2]
[347077456,1735489932640,-1965.02,0.00015823,2]
[347077457,1735489932652,-1270.11,0.00015823,2]
[347077458,1735489932664,-735.69,0.00015823,2]
[347077459,1735489932675,-1915.81,0.00015823,2]
[347077460,1735489932685,-1704.31,0.00015823,2]
[347077461,1735489932696,-601.41,0.00015823,2]
[347077462,1735489932705,-842.62,0.00015823,2]
[347077463,1735489932716,-917.37,0.00015823,2]
[347077464,1735489932917,-1178.93,0.00015823,2]
[347077465,1735489932927,-1187.17,0.00015823,2]
[347077466,1735489932937,-857.11,0.00015823,2]
[347077467,1735489932947,-637.8,0.00015823,2]
[347077468,1735489932957,-1174.42,0.00015823,2]
[347077469,1735489932967,-1426.37,0.00015823,2]
[347077470,1735489932977,-591.13,0.00015823,2]
[347077471,1735489932988,-901.33,0.00015823,2]
[347077472,1735489932998,-500.0,0.00015823,2]
[347077473,1735489933008,-2098.83,0.00015823,2]
[347077474,1735489933017,-896.49,0.00015823,2]
[347077475,1735489933027,-794.28,0.00015823,2]
[347077476,1735489933036,-1070.04,0.00015823,2]
[347077477,1735489933046,-987.86,0.00015823,2]
[347077478,1735489933056,-1547.13,0.00015823,2]
[347077479,1735489933066,-676.15,0.00015823,2]
[347077480,1735489933076,-1819.79,0.00015823,2]
[347077481,1735489933087,-1109.01,0.00015823,2]
[347077482,1735489933096,-1601.3,0.00015823,2]
[347077483,1735489933107,-1018.37,0.00015823,2]
[347077484,1735489933117,-1282.75,0.00015823,2]
[347077485,1735489933127,-1716.82,0.00015823,2]
[347077486,1735489933137,-1084.55,0.00015823,2]